bitfinex-derivatives/quotes_ETHF0:USTF0_20250220
["timestamp","ask_amount","ask_price","bid_price","bid_amount"]
[1740055021217,0.5584,2744.8,2744.5,6.26042]
[1740055021218,0.72861,2744.6,2744.5,6.26042]
[1740055021417,1.30111,2744.6,2744.5,3.05262]
[1740055021720,0.5725,2744.6,2744.5,3.05262]
[1740055021921,1.30111,2744.6,2744.5,0.72862]
[1740055022221,0.72866,2744.4,2744.3,0.00547256]
[1740055022617,0.72866,2744.4,2744.3,0.73416256]
[1740055023216,0.5725,2744.6,2744.3,0.00547256]
[1740055023418,0.5725,2744.6,2744.5,0.72864]
[1740055023618,3.77167256,2744.8,2744.3,0.57087256]
[1740055023821,3.77167256,2744.8,2744.6,0.72859]
[1740055024123,3.77167256,2744.8,2744.7,0.72858]
[1740055024319,3.77167256,2744.8,2744.5,0.5421]
[1740055024518,3.77167256,2744.8,2744.7,0.72858]
[1740055024923,3.77167256,2744.8,2744.5,0.5421]
[1740055025121,4.50024256,2744.8,2744.7,0.72858]
[1740055027027,0.72859,2744.7,2744.6,0.72859]
[1740055027428,3.77167256,2744.8,2744.7,0.72858]
[1740055028430,3.77167256,2744.8,2744.5,0.5421]
[1740055028619,3.77167256,2744.8,2744.7,0.72858]
[1740055028826,0.00547256,2744.8,2744.7,0.72858]
[1740055029024,0.00547256,2744.8,2744.6,2.327]
[1740055029225,0.00547256,2744.8,2744.6,3.05559]
[1740055029526,0.73404256,2744.8,2744.7,0.72858]
[1740055029726,0.00547256,2744.8,2744.6,2.327]
[1740055030030,0.72858,2744.7,2744.6,3.05559]
[1740055030232,0.73405256,2744.8,2744.7,0.72858]
[1740055032533,0.73403256,2744.8,2744.7,0.72858]
[1740055038435,0.72863,2744.7,2744.6,0.72859]
[1740055039938,0.00547256,2744.8,2744.5,0.5721]
[1740055040140,0.72861,2744.7,2744.6,0.72859]
[1740055040330,0.00547256,2744.8,2744.5,0.5721]
[1740055040537,0.00547256,2744.8,2744.7,0.72858]
[1740055042542,0.00547256,2744.8,2744.7,1.27888]
[1740055042935,0.73403256,2744.8,2744.7,1.27888]
[1740055043543,0.00547256,2744.8,2744.7,1.27888]
[1740055043941,0.73403256,2744.8,2744.7,1.27888]
[1740055044244,0.00547256,2744.8,2744.7,1.27888]
[1740055045139,0.00547256,2744.8,2744.7,3.60388]
[1740055046141,0.735312,2744.8,2744.7,3.60388]
[1740055046645,0.006752,2744.8,2744.7,3.60388]
[1740055046940,0.735312,2744.8,2744.7,3.60388]
[1740055047444,0.006752,2744.8,2744.7,3.60388]
[1740055054544,0.006752,2744.8,2744.7,41.60388]
[1740055060150,0.006752,2744.8,2744.7,44.81168]
[1740055060352,3.7488,2745.4,2745.3,0.72843]
[1740055060853,3.2078,2745.4,2745.3,0.72843]
[1740055061054,3.2078,2745.4,2745.3,2.40633]
[1740055064863,0.72838,2745.5,2745.3,1.6779]
[1740055065054,0.72838,2745.5,2745.4,0.7284]
[1740055065359,1.30807,2745.6,2745.5,0.72837]
[1740055065560,0.72839,2745.5,2745.4,0.72838]
[1740055065761,1.30807,2745.6,2745.5,0.72837]
[1740055066267,0.72839,2745.5,2745.4,0.72838]
[1740055066563,1.30805,2745.6,2745.5,0.72837]
[1740055069156,0.5797,2745.6,2745.5,0.72837]
[1740055069357,1.30805,2745.6,2745.5,0.72837]
[1740055069559,0.5797,2745.6,2745.5,0.72837]
[1740055079879,0.5877,2745.7,2745.3,4.8857]
[1740055080080,1.31602,2745.7,2745.6,0.72835]
[1740055082092,0.5877,2745.7,2745.6,0.72835]
[1740055083184,1.31602,2745.7,2745.6,0.72835]
[1740055083586,1.29378,2745.9,2745.4,1.821]
[1740055083886,1.29378,2745.9,2745.8,0.72829]
[1740055085379,0.5655,2745.9,2745.7,1.1656]
[1740055085582,1.29378,2745.9,2745.8,0.72829]
[1740055085781,0.5655,2745.9,2745.8,0.72829]
[1740055085986,1.29377,2745.9,2745.8,0.72829]
[1740055087983,0.5655,2745.9,2745.8,0.72829]
[1740055088793,0.5423,2746.0,2745.9,0.72827]
[1740055088987,0.57,2746.2,2746.1,0.72821]
[1740055090293,0.5363,2746.6,2746.5,0.72811]
[1740055090488,1.1063,2746.6,2746.5,0.72811]
[1740055090989,1.83439,2746.6,2746.1,3.47082]
[1740055091189,1.1063,2746.6,2746.1,1.1173]
[1740055091393,0.72816,2746.3,2746.2,0.72818]
[1740055092095,0.72819,2746.2,2746.1,0.5801]
[1740055092297,1.30079,2746.2,2746.1,0.5801]
[1740055092493,0.72821,2746.1,2746.0,2.324]
[1740055092686,1.27471,2746.1,2746.0,2.324]
[1740055092993,3.7543,2746.1,2745.9,2.324]
[1740055093193,4.3445,2746.1,2745.8,0.5801]
[1740055093392,0.72827,2745.9,2745.8,1.30839]
[1740055096595,4.3445,2746.1,2745.8,1.30839]
[1740055096794,0.72827,2745.9,2745.8,1.30839]
[1740055097097,0.72827,2745.9,2745.8,0.5801]
[1740055097690,0.72827,2745.9,2745.8,1.30839]
[1740055098494,0.72827,2745.9,2745.8,0.5801]
[1740055098690,0.72827,2745.9,2745.8,1.30839]
[1740055098893,0.72827,2745.9,2745.8,0.5801]
[1740055099093,0.72827,2745.9,2745.8,1.30839]
[1740055099400,0.72827,2745.9,2745.8,0.5801]
[1740055099694,0.72829,2745.8,2745.7,0.73379256]
[1740055099889,1.26309,2745.8,2745.7,0.73379256]
[1740055102294,1.26309,2745.8,2745.7,0.00547256]
[1740055102686,1.26309,2745.8,2745.7,0.73379256]
[1740055103694,1.26309,2745.8,2745.7,0.00547256]
[1740055104497,3.7426,2745.8,2745.1,41.2078]
[1740055104694,0.72842,2745.4,2745.3,0.72838]
[1740055105997,0.00543835,2745.6,2745.2,5.29252]
[1740055106198,0.73378835,2745.6,2745.5,0.72837]
[1740055108802,0.7284,2745.5,2745.4,0.72838]
[1740055111899,0.00543835,2745.6,2745.2,3.4714]
[1740055112098,0.72841,2745.4,2745.3,0.7284]
[1740055112703,0.72839,2745.5,2745.4,0.72839]
[1740055113309,0.72842,2745.4,2745.3,0.72841]
[1740055113809,0.72839,2745.5,2745.4,0.72838]
[1740055124108,0.73380835,2745.6,2745.5,0.72837]
[1740055126018,0.00543835,2745.6,2745.2,5.29253]
[1740055126206,0.72838,2745.5,2745.4,0.72837]
[1740055126603,0.00543835,2745.6,2745.2,5.29253]
[1740055126810,0.73380835,2745.6,2745.5,0.72837]
[1740055127016,0.72839,2745.5,2745.4,0.72837]
[1740055129116,1.28489,2745.5,2745.4,0.72837]
[1740055129310,0.72842,2745.4,2745.3,0.7284]
[1740055129511,1.29072,2745.4,2745.3,0.7284]
[1740055131612,0.5623,2745.4,2745.2,3.4714]
[1740055131818,0.5623,2745.4,2745.3,0.72843]
[1740055131819,1.29073,2745.4,2745.3,0.72843]
[1740055132604,0.5623,2745.4,2745.3,0.72843]
[1740055133112,0.00543835,2745.6,2745.5,0.72837]
[1740055133523,0.73378835,2745.6,2745.5,0.72837]
[1740055133711,0.00543835,2745.6,2745.5,0.72837]
[1740055137413,1.85608835,2745.6,2745.5,0.72837]
[1740055137618,1.12773835,2745.6,2745.2,1.1474]
[1740055137813,0.72842,2745.4,2745.3,0.72842]
[1740055138415,1.12773835,2745.6,2745.2,3.4714]
[1740055138620,0.533,2745.3,2745.2,4.19985]
[1740055140118,1.26143,2745.3,2745.2,4.19985]
[1740055140420,0.533,2745.3,2745.2,4.19985]
[1740055140820,0.72841,2745.4,2745.3,0.72843]
[1740055144516,0.5505,2745.5,2745.2,3.4714]
[1740055144720,0.72841,2745.4,2745.3,0.72841]
[1740055145914,1.2789,2745.5,2745.4,0.7284]
[1740055146116,0.72842,2745.4,2745.3,0.72841]
[1740055148729,1.27889,2745.5,2745.4,0.7284]
[1740055150130,0.5505,2745.5,2745.2,3.4714]
[1740055150425,0.72842,2745.4,2745.3,0.7284]
[1740055153236,0.72843,2745.3,2745.2,4.19983]
[1740055153531,2.37144,2745.5,2745.1,3.21326229]
[1740055153736,1.90285,2745.2,2745.1,0.00546229]
[1740055155230,7.1744,2745.2,2744.7,20.196]
[1740055155533,0.72858,2744.7,2744.6,3.0526]
[1740055156327,1.30948,2744.7,2744.6,3.0526]
[1740055157333,0.5809,2744.7,2744.6,3.0526]
[1740055157735,1.30948,2744.7,2744.6,3.0526]
[1740055158434,1.30948,2744.7,2744.6,2.324]
[1740055160138,0.72861,2744.6,2744.5,1.31841]
[1740055160330,0.5809,2744.7,2744.5,1.31841]
[1740055160533,0.72861,2744.6,2744.5,1.31841]
[1740055162437,0.5809,2744.7,2744.5,0.5898]
[1740055162642,1.3095,2744.7,2744.6,0.72861]
[1740055163141,1.3095,2744.7,2744.6,38.72861]
[1740055164237,0.72857,2744.8,2744.7,0.72856]
[1740055164439,3.2078,2745.2,2744.6,41.2078]
[1740055164642,3.2078,2745.2,2745.1,0.72848]
[1740055164943,0.72845,2745.2,2745.1,0.72848]
[1740055167649,0.5819,2745.3,2745.0,0.5507]
[1740055167945,0.72848,2745.1,2745.0,1.27919]
[1740055168644,0.72848,2745.1,2744.9,0.537]
[1740055168950,0.72853,2744.9,2744.8,0.72854]
[1740055169252,3.2078,2745.2,2744.6,2.8837]
[1740055169438,0.72853,2745.0,2744.9,0.7285]
[1740055169837,1.3137,2745.1,2745.0,0.7285]
[1740055170243,0.5852,2745.1,2745.0,0.7285]
[1740055170443,3.93626,2745.2,2745.1,0.72848]
[1740055170844,3.2078,2745.2,2745.1,0.72848]
[1740055171241,3.93625,2745.2,2745.1,1.31958]
[1740055172048,3.93625,2745.2,2745.1,0.5911]
[1740055172553,3.93625,2745.2,2745.1,1.31958]
[1740055173536,3.2078,2745.2,2745.1,1.31958]
[1740055174541,3.93625,2745.2,2745.1,1.31958]
[1740055176149,4.337,2745.5,2745.4,0.7284]
[1740055176344,1.1292,2745.5,2745.4,0.7284]
[1740055176947,1.1292,2745.5,2745.4,1.2922]
[1740055177146,0.72837,2745.5,2745.4,0.5638]
[1740055180055,0.5904,2745.5,2745.0,2.8837]
[1740055180254,0.72848,2745.1,2745.0,3.0525]
[1740055183056,0.5493,2745.3,2745.0,2.324]
[1740055183258,0.72848,2745.2,2745.1,1.27196]
[1740055186065,0.72848,2745.2,2745.1,0.5435]
[1740055186361,0.72848,2745.2,2745.1,1.27198]
[1740055188458,3.2078,2745.4,2745.1,2.3647]
[1740055188656,0.5904,2745.5,2745.4,0.7284]
[1740055188858,0.72837,2745.5,2745.4,0.7284]
[1740055189456,0.72837,2745.5,2745.4,1.2863]
[1740055190356,0.73379835,2745.6,2745.5,0.72837]
[1740055191062,0.00543835,2745.6,2745.5,0.72837]
[1740055197158,0.73378835,2745.6,2745.5,0.72837]
[1740055198465,0.73378835,2745.6,2745.5,1.30757]
[1740055199365,0.73378835,2745.6,2745.5,0.5792]
[1740055199858,0.00543835,2745.6,2745.2,0.72844]
[1740055200059,0.72843,2745.3,2745.2,2.324]
[1740055200460,5.0288,2745.4,2745.1,1.1342]
[1740055200662,1.28625,2745.2,2745.1,3.4582]
[1740055201664,1.28625,2745.2,2745.1,4.18668]
[1740055202855,1.28625,2745.2,2745.1,3.4582]
[1740055205767,3.2078,2745.4,2745.3,0.72843]
[1740055206466,0.72839,2745.5,2745.4,0.7284]
[1740055206767,0.00543835,2745.6,2745.5,0.72837]
[1740055206960,0.00543835,2745.6,2745.5,1.84277]
[1740055207160,0.00543835,2745.6,2745.5,4.16677]
[1740055208271,0.00543835,2745.6,2745.5,7.37457]
[1740055209871,0.72819,2746.2,2746.0,0.72822]
[1740055210061,0.72819,2746.2,2746.1,1.1423]
[1740055210266,3.7986,2746.4,2746.1,1.1423]
[1740055210465,0.5908,2746.4,2746.3,0.72816]
[1740055210768,0.5401,2746.5,2746.4,0.72813]
[1740055211069,0.57596229,2746.6,2746.4,0.72813]
[1740055211271,1.30406229,2746.6,2746.4,0.72813]
[1740055211567,1.30404229,2746.6,2746.5,0.5616]
[1740055212969,0.57596229,2746.6,2746.5,0.5616]
[1740055213170,0.73354229,2746.6,2746.5,0.5616]
[1740055213673,0.00546229,2746.6,2746.5,0.5616]
[1740055213973,0.72815,2746.4,2746.2,1.26378]
[1740055214364,0.72815,2746.4,2746.3,0.72816]
[1740055214972,0.00546229,2746.6,2746.2,0.5356]
[1740055215173,0.73354229,2746.6,2746.2,0.5356]
[1740055215568,0.00546229,2746.6,2746.5,0.72811]
[1740055216274,0.73354229,2746.6,2746.5,1.30661]
[1740055216475,0.00546229,2746.6,2746.5,1.30661]
[1740055217466,2.29e-06,2746.6,2746.5,1.30661]
[1740055217975,2.29e-06,2746.6,2746.5,39.30661]
[1740055234275,0.72808229,2746.6,2746.5,38.0]
[1740055234483,3.93588229,2746.6,2746.5,40.322]
[1740055234681,5.02805229,2746.6,2746.1,0.00546229]
[1740055234874,0.72819,2746.2,2746.1,2.32746229]
[1740055235077,0.72819,2746.2,2746.1,40.32746229]
[1740055236176,1.1381,2746.5,2746.1,40.32746229]
[1740055236485,0.72814,2746.4,2746.1,40.32746229]
[1740055236686,0.5719,2746.5,2746.4,0.72813]
[1740055237985,0.5719,2746.5,2746.4,38.72813]
[1740055238379,1.30001,2746.5,2746.4,38.0]
[1740055238679,0.72819,2746.2,2746.1,5.53526229]
[1740055238881,0.72819,2746.2,2746.1,2.32746229]
[1740055239080,0.72819,2746.2,2746.1,40.32746229]
[1740055239277,0.72819,2746.2,2746.1,41.05567229]
[1740055239475,0.5415,2746.3,2746.1,40.32746229]
[1740055239677,0.5415,2746.3,2746.2,0.72819]
[1740055240187,1.26966,2746.3,2746.1,40.32746229]
[1740055240486,1.26966,2746.3,2746.1,41.05566229]
[1740055241282,1.26966,2746.3,2746.1,40.32746229]
[1740055241476,1.26966,2746.3,2746.1,41.05565229]
[1740055242283,0.5415,2746.3,2746.2,0.72819]
[1740055242789,1.26966,2746.3,2746.1,41.05565229]
[1740055242984,0.5415,2746.3,2746.2,0.72819]
[1740055243286,0.72815,2746.4,2746.2,1.83649]
[1740055243488,1.1499,2746.5,2746.2,1.83649]
[1740055243789,0.72815,2746.4,2746.3,0.5417]
[1740055244681,0.72815,2746.4,2746.3,1.26986]
[1740055244882,2.29e-06,2746.6,2746.3,0.5417]
[1740055245082,2.29e-06,2746.6,2746.5,0.72811]
[1740055245383,0.72799,2747.0,2746.8,0.72802]
[1740055245584,0.728,2746.9,2746.8,0.72802]
[1740055246486,0.72803,2746.8,2746.7,0.72804]
[1740055246679,1.1431,2747.0,2746.6,0.72807]
[1740055246987,0.72806,2746.7,2746.6,0.72807]
[1740055247887,0.72806,2746.7,2746.5,2.326]
[1740055248191,0.5853,2746.6,2746.5,3.0541]
[1740055251791,0.5852,2746.9,2746.7,0.72803]
[1740055251990,0.72803,2746.8,2746.7,0.72803]
[1740055252190,0.5852,2746.9,2746.5,2.326]
[1740055252489,1.31321,2746.9,2746.8,0.72803]
[1740055254497,0.72808,2746.7,2746.6,0.72806]
[1740055258500,0.72808,2746.6,2746.5,3.05408]
[1740055258696,0.72808,2746.6,2746.4,3.2078]
[1740055258997,0.72811,2746.5,2746.4,2.324]
[1740055259197,1.88611,2746.5,2746.4,2.324]
[1740055260398,0.72816,2746.3,2746.2,1.1224]
[1740055260595,0.72816,2746.3,2746.2,3.4464]
[1740055260994,0.72819,2746.2,2746.1,0.00546229]
[1740055261198,5.09392,2746.5,2746.4,0.72813]
[1740055261397,0.72815,2746.4,2746.3,0.72814]
[1740055261893,4.3658,2746.5,2746.1,1.15026229]
[1740055262092,0.72815,2746.4,2746.3,0.72814]
[1740055262300,5.09392,2746.5,2746.4,0.72813]
[1740055264002,3.7919,2746.5,2746.4,0.72813]
[1740055264194,3.2078,2746.5,2746.4,3.05413]
[1740055266195,0.72807,2746.7,2746.6,0.72807]
[1740055266998,0.72807,2746.7,2746.6,1.26757]
[1740055267400,4.3571,2746.8,2746.7,0.72805]
[1740055267601,1.87733,2746.8,2746.7,0.72805]
[1740055267804,0.72802,2746.9,2746.8,0.72802]
[1740055268099,0.72803,2746.8,2746.7,1.26184]
[1740055268497,2.39656,2747.0,2746.5,1.28089]
[1740055268700,0.5766,2747.0,2746.7,0.72804]
[1740055269006,0.72807,2746.7,2746.6,0.72807]
[1740055269602,0.72808,2746.6,2746.5,1.2809]
[1740055273795,0.72808,2746.6,2746.5,0.5528]
[1740055273999,0.72808,2746.6,2746.5,1.28091]
[1740055276000,1.28728,2746.6,2746.5,1.28091]
[1740055276402,1.28728,2746.6,2746.5,0.5528]
[1740055276602,0.5592,2746.6,2746.4,2.8655]
[1740055276804,0.72811,2746.5,2746.4,2.8625]
[1740055277103,0.72811,2746.5,2746.4,2.323]
[1740055278210,0.72811,2746.5,2746.4,3.05113]
[1740055283114,0.72811,2746.5,2746.4,2.323]
[1740055284017,0.72811,2746.5,2746.4,3.05113]
[1740055288018,0.72811,2746.5,2746.4,2.323]
[1740055288219,0.72811,2746.5,2746.4,3.05113]
[1740055288520,0.72811,2746.5,2746.4,2.323]
[1740055289719,0.72811,2746.5,2746.4,3.05113]
[1740055290515,0.72811,2746.5,2746.3,3.7964]
[1740055290719,0.72813,2746.4,2746.3,3.63975]
[1740055291622,0.5592,2746.6,2746.3,2.9116]
[1740055292017,0.72813,2746.4,2746.3,3.63975]
[1740055294823,0.72812,2746.5,2746.4,0.72811]
[1740055300322,1.28729,2746.6,2746.5,0.72811]
[1740055301021,0.72809,2746.6,2746.5,0.72811]
[1740055301227,0.72809,2746.6,2746.3,2.9116]
[1740055301228,0.72813,2746.5,2746.4,0.72811]
[1740055302823,0.72812,2746.5,2746.4,0.72811]
[1740055307725,0.5546,2746.6,2746.3,2.9116]
[1740055307923,0.72813,2746.4,2746.3,3.63973]
[1740055311738,1.2827,2746.6,2746.5,0.72811]
[1740055312227,0.72811,2746.5,2746.4,1.30961]
[1740055316529,3.2078,2746.8,2746.4,0.5815]
[1740055316836,3.2078,2746.8,2746.7,0.72805]
[1740055317734,3.93583,2746.8,2746.7,0.72805]
[1740055318034,3.93583,2746.8,2746.7,1.30975]
[1740055318435,3.2078,2746.8,2746.7,1.30975]
[1740055320136,3.93583,2746.8,2746.7,1.30975]
[1740055321231,3.2078,2746.8,2746.7,1.30975]
[1740055321432,3.93583,2746.8,2746.7,1.30975]
[1740055322740,3.2078,2746.8,2746.7,1.30975]
[1740055322944,3.93583,2746.8,2746.7,1.30975]
[1740055323439,3.2078,2746.8,2746.7,1.30975]
[1740055325237,3.2078,2746.8,2746.7,1.87595]
[1740055325443,3.93583,2746.8,2746.7,1.87595]
[1740055326344,3.93583,2746.8,2746.7,1.30975]
[1740055326735,3.93583,2746.8,2746.7,3.63175]
[1740055329041,3.2078,2746.8,2746.7,3.63175]
[1740055329544,3.93583,2746.8,2746.7,3.63175]
[1740055330343,3.93583,2746.8,2746.7,2.9037]
[1740055330546,0.72815,2746.4,2746.3,0.72813]
[1740055330747,0.72815,2746.4,2746.3,3.05013]
[1740055331143,2.95695,2746.7,2746.3,2.322]
[1740055331444,0.72812,2746.5,2746.4,0.72811]
[1740055331746,1.1368,2746.7,2746.6,0.72808]
[1740055331944,1.1368,2746.7,2746.5,0.5884]
[1740055332240,1.86485,2746.7,2746.6,0.5423]
[1740055340146,1.1368,2746.7,2746.6,1.27038]
[1740055340356,3.93585,2746.8,2746.7,0.72805]
[1740055341257,3.2078,2746.8,2746.7,0.72805]
[1740055341453,3.93583,2746.8,2746.7,0.72805]
[1740055341756,0.72805,2746.7,2746.6,1.27036]
[1740055342850,3.93583,2746.8,2746.7,0.72805]
[1740055343554,3.2078,2746.8,2746.7,0.72805]
[1740055343955,3.2078,2746.8,2746.7,3.05005]
[1740055345453,3.93583,2746.8,2746.7,3.05005]
[1740055345653,1.1393,2746.9,2746.7,2.322]
[1740055345859,1.86731,2746.9,2746.8,1.26413]
[1740055346259,0.72799,2747.0,2746.9,0.72799]
[1740055352563,3.93578,2747.1,2747.0,0.72797]
[1740055353363,0.728,2747.0,2746.9,0.72799]
[1740055354360,3.2078,2747.1,2746.8,0.5361]
[1740055354557,3.2078,2747.1,2746.8,0.72802]
[1740055354558,1.2862,2746.9,2746.8,0.72802]
[1740055356059,0.5582,2746.9,2746.7,2.322]
[1740055356259,1.30253,2746.8,2746.7,3.05003]
[1740055356957,0.5745,2746.8,2746.6,1.0834]
[1740055357153,0.72805,2746.7,2746.6,3.4054]
[1740055357359,0.72805,2746.7,2746.6,4.13348]
[1740055357761,0.72805,2746.7,2746.6,3.59238]
[1740055357963,0.72805,2746.7,2746.6,2.8643]
[1740055358563,0.72805,2746.7,2746.6,3.59238]
[1740055359063,0.72813,2746.4,2746.3,0.5814]
[1740055359666,0.72813,2746.4,2746.3,1.1609]
[1740055363368,0.72813,2746.4,2746.3,1.88906]
[1740055364469,0.72813,2746.4,2746.3,1.1609]
[1740055365063,0.72813,2746.4,2746.3,1.88906]
[1740055367468,0.72813,2746.4,2746.3,1.1609]
[1740055367870,0.72813,2746.4,2746.3,1.88906]
[1740055370873,0.7281,2746.6,2746.5,0.72809]
[1740055373779,0.72812,2746.5,2746.4,0.72811]
[1740055374180,6.18748,2746.8,2746.3,1.1609]
[1740055374378,0.7281,2746.6,2746.5,0.72809]
[1740055381686,1.1596,2746.8,2746.4,1.82032]
[1740055381881,0.728,2747.0,2746.9,0.72798]
[1740055382085,3.7599,2747.1,2746.5,1.82026]
[1740055382287,0.72802,2746.9,2746.8,1.2765]
[1740055384080,0.72802,2746.9,2746.8,0.5485]
[1740055384288,0.72803,2746.8,2746.7,1.26512]
[1740055384588,1.30573,2746.8,2746.7,1.26512]
[1740055387384,1.30573,2746.8,2746.7,0.5371]
[1740055387586,0.5777,2746.8,2746.6,2.322]
[1740055387892,1.27885,2746.7,2746.6,2.322]
[1740055388988,1.27885,2746.7,2746.6,3.05008]
[1740055390892,1.27885,2746.7,2746.6,3.63358]
[1740055392094,3.93576,2747.1,2746.6,4.72568]
[1740055392397,0.72803,2746.9,2746.8,0.72801]
[1740055393586,0.72803,2746.9,2746.8,1.29171]
[1740055397794,0.581,2747.0,2746.8,1.29171]
[1740055398002,0.581,2747.0,2746.9,0.728]
[1740055398003,1.309,2747.0,2746.9,0.728]
[1740055398697,0.581,2747.0,2746.9,0.728]
[1740055399401,1.30897,2747.0,2746.9,0.728]
[1740055399605,0.581,2747.0,2746.9,0.728]
[1740055399902,3.2078,2747.1,2746.8,0.5637]
[1740055400201,3.93576,2747.1,2747.0,0.72797]
[1740055401798,3.2078,2747.1,2747.0,0.72797]
[1740055402096,3.93575,2747.1,2747.0,0.72797]
[1740055405005,0.728,2747.0,2746.8,0.5637]
[1740055405201,0.728,2746.9,2746.8,1.2917]
[1740055405400,1.3125,2746.9,2746.8,1.2917]
[1740055409308,1.3125,2746.9,2746.8,0.5637]
[1740055410512,1.3125,2746.9,2746.7,0.5668]
[1740055410513,0.5845,2746.9,2746.7,0.5668]
[1740055410714,0.72803,2746.8,2746.7,0.5668]
[1740055410913,1.31173,2746.8,2746.7,0.5668]
[1740055411215,1.31173,2746.8,2746.6,2.9055]
[1740055411419,1.31173,2746.8,2746.6,3.63356]
[1740055412118,1.31173,2746.8,2746.7,0.72805]
[1740055413022,1.31175,2746.8,2746.7,0.72805]
[1740055414223,0.5837,2746.8,2746.6,2.9055]
[1740055414616,0.72805,2746.7,2746.6,3.63356]
[1740055414818,0.72805,2746.7,2746.6,0.5835]
[1740055416123,0.72805,2746.7,2746.6,1.31158]
[1740055425335,0.72805,2746.7,2746.6,0.5835]
[1740055425734,0.72805,2746.7,2746.6,1.31158]
[1740055425938,0.72805,2746.7,2746.6,0.5835]
[1740055427530,0.72805,2746.7,2746.6,1.31158]
[1740055428738,0.72805,2746.7,2746.6,0.5835]
[1740055433638,0.72813,2746.4,2746.3,2.8628]
[1740055433835,0.72813,2746.4,2746.3,4.0049]
[1740055434239,0.72813,2746.4,2746.3,4.73306]
[1740055443648,0.72819,2746.2,2746.1,0.00546229]
[1740055447641,3.2078,2746.2,2745.7,0.5377]
[1740055447936,0.72829,2745.8,2745.7,0.5377]
[1740055449048,0.72829,2745.8,2745.7,1.26602]
[1740055449348,0.72829,2745.8,2745.7,0.5377]
[1740055449651,0.72829,2745.8,2745.7,1.26602]
[1740055450349,0.72829,2745.8,2745.7,0.5377]
[1740055450549,0.72829,2745.8,2745.7,1.26602]
[1740055451053,0.72829,2745.8,2745.7,0.5377]
[1740055451244,1.1216,2745.9,2745.6,0.72833]
[1740055451450,0.72832,2745.7,2745.6,0.72833]
[1740055451952,1.1216,2745.9,2745.5,0.58356229]
[1740055452251,0.72833,2745.7,2745.6,0.72834]
[1740055453755,1.1216,2745.9,2745.5,0.58356229]
[1740055453955,0.72832,2745.7,2745.6,0.72835]
[1740055454251,1.1216,2745.9,2745.5,0.58356229]
[1740055454448,0.72833,2745.7,2745.6,0.72833]
[1740055456459,1.1216,2745.9,2745.5,0.58356229]
[1740055456756,0.72832,2745.8,2745.7,0.72831]
[1740055460063,4.3294,2745.9,2745.5,0.58356229]
[1740055460261,0.72833,2745.7,2745.6,0.72832]
[1740055460462,4.3294,2745.9,2745.5,0.58356229]
[1740055460661,0.72832,2745.8,2745.7,0.7283]
[1740055463068,4.3294,2745.9,2745.5,0.58356229]
[1740055463260,0.72834,2745.7,2745.6,0.72833]
[1740055464667,4.8877,2745.9,2745.5,0.00546229]
[1740055464668,0.72835,2745.6,2745.5,0.00546229]
[1740055464863,1.29085,2745.6,2745.5,0.00546229]
[1740055469172,10.49865,2745.6,2745.5,0.00546229]
[1740055469369,9.7703,2745.6,2744.8,1.88195]
[1740055469573,0.72853,2744.9,2744.8,0.5911]
[1740055470079,0.72853,2744.9,2744.8,1.31966]
[1740055471080,0.72853,2744.9,2744.8,0.5911]
[1740055472384,3.93633,2744.9,2744.8,0.5911]
[1740055472683,0.72858,2744.7,2744.6,0.00546229]
[1740055474584,3.05058,2744.7,2744.6,0.00546229]
[1740055477285,9.05058,2744.7,2744.6,0.00546229]
[1740055477586,0.72874,2744.1,2744.0,1.6495]
[1740055477782,0.72874,2744.1,2744.0,2.37827]
[1740055477983,3.2078,2744.2,2743.7,1.20368]
[1740055478181,0.72882,2743.8,2743.7,1.20368]
[1740055478484,0.72882,2743.8,2743.7,0.47485]
[1740055485088,0.72882,2743.8,2743.5,0.00546229]
[1740055485089,0.72888,2743.6,2743.5,0.00546229]
[1740055485294,3.93668,2743.6,2743.5,0.00546229]
[1740055485797,4.48758,2743.6,2743.5,0.00546229]
[1740055486291,3.2078,2743.9,2743.5,0.00546229]
[1740055486498,3.9366,2743.9,2743.8,0.72882]
[1740055486887,0.72885,2743.8,2743.7,0.72884]
[1740055487193,3.2078,2743.9,2743.8,0.72882]
[1740055487500,0.72885,2743.7,2743.6,2.44806]
[1740055488497,0.72885,2743.7,2743.6,1.7192]
[1740055489395,0.72885,2743.7,2743.6,2.44808]
[1740055489597,0.72885,2743.7,2743.6,1.7192]
[1740055489992,0.72885,2743.7,2743.6,2.44808]
[1740055490500,0.00546229,2744.0,2743.9,0.7288]
[1740055491593,0.00546229,2744.0,2743.7,2.323]
[1740055491793,0.73424229,2744.0,2743.7,2.323]
[1740055491994,0.7288,2743.9,2743.8,0.72881]
[1740055492700,0.73425229,2744.0,2743.8,0.72881]
[1740055493303,0.73425229,2744.0,2743.8,3.05181]
[1740055493801,0.73425229,2744.0,2743.9,0.7288]
[1740055494003,0.00546229,2744.0,2743.9,0.7288]
[1740055495193,0.73423229,2744.0,2743.9,0.7288]
[1740055495399,0.00546229,2744.0,2743.8,2.323]
[1740055495598,0.73424229,2744.0,2743.9,0.7288]
[1740055495797,0.00546229,2744.0,2743.8,2.323]
[1740055495996,0.7288,2743.9,2743.8,3.05181]
[1740055496199,0.00546229,2744.0,2743.8,2.323]
[1740055496395,0.73426229,2744.0,2743.9,0.7288]
[1740055496595,0.00546229,2744.0,2743.8,2.323]
[1740055496797,0.7288,2743.9,2743.8,3.05181]
[1740055497198,0.73426229,2744.0,2743.9,0.7288]
[1740055498502,0.00546229,2744.0,2743.8,2.323]